Workbook

Sheet паспорт
A1: ПАТ "УКРТРАНСГАЗ" | G1: ПАСПОРТ ФІЗИКО-ХІМІЧНИХ ПОКАЗНИКІВ ПРИРОДНОГО ГАЗУ № 218
A2: Філія "УМГ "ЛЬВІВТРАНСГАЗ" | G2: переданого Тернопільським ЛВУМГ та прийнятого ПАТ "Івано-Франківськгаз", ПАТ"Тернопільгаз", ПП"ОККО-РІТЕЙЛ"
A3: Рогатинський п/м Тернопільське ЛВУМГ | G3: Маршрут № 218
A4: Вимірювальна хіміко-аналітична лабораторія
A5: Свідоцтво № РЛ 156/15 чинно до 14.12.2020 р. | K5: по газопроводу "КЗУ-2" | V5: за період з | X5: 2017-02-01 | Z5: по | AA5: 2017-02-28
A7: Число місяця | B7: Компонентний склад, % мол. | N7: Фізико-хімічні показники газу обчислені на основі компонентного складу, 101,325 кПа | X7: Температура точки роси вологи (Р = 3.92 МПа), ºС | Y7: Температура точки роси вуглеводнів, ºС | Z7: Вміст сірководню, г/м3 | AA7: Вміст меркаптанової сірки, г/м3 | AB7: Вміст механічних домішок, г/м3
N8: Густина абсолютна, кг/м3,при 20 ºС, | O8: Температура вимірювання/згоряння при 20/25°С
B9: метан, С1 | C9: етан, С2 | D9: пропан, С3 | E9: ізо-бутан, і-С4 | F9: н-бутан, н-С4 | G9: нео-пентан, нео-С5 | H9: ізо-пентан, і-С5 | I9: н-пентан, н-С5 | J9: гексани та вищі, С6+ | K9: кисень, О2 | L9: азот, N2 | M9: діоксид вуглецю, CО2 | O9: Теплота згоряння нижча | R9: Теплота згоряння вища | U9: Число Воббе вище
O10: ккал/м3 | P10: МДж/м3 | Q10: кВт⋅год/м3 | R10: ккал/м3 | S10: МДж/м3 | T10: кВт⋅год/м3 | U10: ккал/м3 | V10: МДж/м3 | W10: кВт⋅год/м3
A11: 1 | O11: =P11*238.8459 -> 8235.788785 | P11: 34.4816 | Q11: =P11/3.6 -> 9.578222222 | R11: =S11*238.8459 -> 9125.752493 | S11: 38.2077 | T11: =S11/3.6 -> 10.61325 | AC11: =SUM(B11:M11)+$K$39+$N$39 -> 0
A12: 2 | O12: =P12*238.8459 -> 8235.788785 | P12: 34.4816 | Q12: 9.578222222 | R12: =S12*238.8459 -> 9125.752493 | S12: 38.2077 | T12: 10.61325 | AC12: 0
A13: 3 | O13: 8235.788785 | P13: 34.4816 | Q13: 9.578222222 | R13: 9125.752493 | S13: 38.2077 | T13: 10.61325 | AC13: 0 | AD13: =IF(AC13=100,"ОК"," ") -> 
A14: 4 | O14: 8235.788785 | P14: 34.4816 | Q14: 9.578222222 | R14: 9125.752493 | S14: 38.2077 | T14: 10.61325 | AC14: 0 | AD14: =IF(AC14=100,"ОК"," ") -> 
A15: 5 | O15: 8235.788785 | P15: 34.4816 | Q15: 9.578222222 | R15: 9125.752493 | S15: 38.2077 | T15: 10.61325 | AC15: 0
A16: 6 | O16: 8235.788785 | P16: 34.4816 | Q16: 9.578222222 | R16: 9125.752493 | S16: 38.2077 | T16: 10.61325 | AC16: 0
A17: 7 | B17: 95.2486 | C17: 2.6133 | D17: 0.8395 | E17: 0.1325 | F17: 0.1355 | G17: 0.0007 | H17: 0.0261 | I17: 0.0194 | J17: 0.0148 | K17: 0.0089 | L17: 0.7429 | M17: 0.2177 | N17: 0.7059 | O17: =P17*238.8459 -> 8240.565703 | P17: 34.5016 | Q17: 9.583777778 | R17: 9130.88768 | S17: 38.2292 | T17: 10.61922222 | U17: 11927 | V17: 49.96 | W17: 13.87 | X17: -10.3 | Y17: -9.4 | AC17: 99.9999
A18: 8 | O18: 8240.565703 | P18: 34.5016 | Q18: 9.583777778 | R18: 9130.88768 | S18: 38.2292 | T18: 10.61922222 | AC18: 0
A19: 9 | O19: 8240.565703 | P19: 34.5016 | Q19: 9.583777778 | R19: 9130.88768 | S19: 38.2292 | T19: 10.61922222 | AC19: 0
A20: 10 | O20: 8240.565703 | P20: 34.5016 | Q20: 9.583777778 | R20: 9130.88768 | S20: 38.2292 | T20: 10.61922222 | AC20: 0
A21: 11 | O21: 8240.565703 | P21: 34.5016 | Q21: 9.583777778 | R21: 9130.88768 | S21: 38.2292 | T21: 10.61922222 | AC21: 0
A22: 12 | O22: 8240.565703 | P22: 34.5016 | Q22: 9.583777778 | R22: 9130.88768 | S22: 38.2292 | T22: 10.61922222 | AC22: 0
A23: 13 | O23: 8240.565703 | P23: 34.5016 | Q23: 9.583777778 | R23: 9130.88768 | S23: 38.2292 | T23: 10.61922222 | AC23: 0
A24: 14 | B24: 94.5527 | C24: 2.8849 | D24: 0.8542 | E24: 0.1232 | F24: 0.137 | G24: 0.0013 | H24: 0.0299 | I24: 0.0223 | J24: 0.0207 | K24: 0.0093 | L24: 0.8853 | M24: 0.4791 | N24: 0.7117 | O24: 8229.339946 | P24: 34.4546 | Q24: =P24/3.6 -> 9.570722222 | R24: 9117.607848 | S24: 38.1736 | T24: =S24/3.6 -> 10.60377778 | U24: 11862 | V24: 49.69 | W24: 13.79 | X24: -6.4 | Y24: -7.2 | Z24: 0 | AA24: 0 | AB24: 0 | AC24: 99.9999
A25: 15 | O25: 8229.339946 | P25: 34.4546 | Q25: 9.570722222 | R25: 9117.607848 | S25: 38.1736 | T25: 10.60377778 | AC25: 0
A26: 16 | O26: 8229.339946 | P26: 34.4546 | Q26: 9.570722222 | R26: 9117.607848 | S26: 38.1736 | T26: 10.60377778 | AC26: 0
A27: 17 | O27: 8229.339946 | P27: 34.4546 | Q27: 9.570722222 | R27: 9117.607848 | S27: 38.1736 | T27: 10.60377778 | AC27: 0
A28: 18 | O28: 8229.339946 | P28: 34.4546 | Q28: 9.570722222 | R28: 9117.607848 | S28: 38.1736 | T28: 10.60377778 | AC28: 0
A29: 19 | O29: 8229.339946 | P29: 34.4546 | Q29: 9.570722222 | R29: 9117.607848 | S29: 38.1736 | T29: 10.60377778 | AC29: 0
A30: 20 | O30: 8229.339946 | P30: 34.4546 | Q30: 9.570722222 | R30: 9117.607848 | S30: 38.1736 | T30: 10.60377778 | AC30: 0 | AD30: =IF(AC30=100,"ОК"," ") -> 
A31: 21 | B31: 94.4204 | C31: 2.9311 | D31: 0.8525 | E31: 0.1202 | F31: 0.1371 | G31: 0.0005 | H31: 0.0301 | I31: 0.0225 | J31: 0.0198 | K31: 0.0098 | L31: 0.9281 | M31: 0.5279 | N31: 0.7126 | O31: 8223.727067 | P31: 34.4311 | Q31: =P31/3.6 -> 9.564194444 | R31: 9111.350086 | S31: 38.1474 | T31: =S31/3.6 -> 10.5965 | U31: 11845 | V31: 49.62 | W31: 13.78 | X31: -7 | Y31: -6 | AC31: 100 | AD31: ОК
A32: 22 | O32: 8223.727067 | P32: 34.4311 | Q32: 9.564194444 | R32: 9111.350086 | S32: 38.1474 | T32: 10.5965 | AC32: 0
A33: 23 | O33: 8223.727067 | P33: 34.4311 | Q33: 9.564194444 | R33: 9111.350086 | S33: 38.1474 | T33: 10.5965 | AC33: 0 | AD33: =IF(AC33=100,"ОК"," ") -> 
A34: 24 | O34: 8223.727067 | P34: 34.4311 | Q34: 9.564194444 | R34: 9111.350086 | S34: 38.1474 | T34: 10.5965 | AC34: 0
A35: 25 | O35: 8223.727067 | P35: 34.4311 | Q35: 9.564194444 | R35: 9111.350086 | S35: 38.1474 | T35: 10.5965 | AC35: 0
A36: 26 | O36: 8223.727067 | P36: 34.4311 | Q36: 9.564194444 | R36: 9111.350086 | S36: 38.1474 | T36: 10.5965 | AC36: 0
A37: 27 | O37: 8223.727067 | P37: 34.4311 | Q37: 9.564194444 | R37: 9111.350086 | S37: 38.1474 | T37: 10.5965 | AC37: 0
A38: 28 | B38: 91.833 | C38: 4.092 | D38: 1.0383 | E38: 0.1215 | F38: 0.1722 | G38: 0.0017 | H38: 0.0422 | I38: 0.033 | J38: 0.0393 | K38: 0.0086 | L38: 1.329 | M38: 1.2893 | N38: 0.7343 | O38: 8245.509814 | P38: 34.5223 | Q38: =P38/3.6 -> 9.589527778 | R38: 9131.078757 | S38: 38.23 | T38: =S38/3.6 -> 10.61944444 | U38: 11695 | V38: 49.99 | W38: 13.6 | X38: -8.7 | Y38: -7.6 | AC38: 100.0001
A39: Рівень одоризації відповідає чинним нормативним документам | O39: 8233.21971 | P39: 34.4708438 | Q39: 9.575234388 | R39: 9122.224738 | S39: 38.19292999 | T39: 10.60914722
H40: Середньозважене значення теплоти згоряння:
B43: В.о.начальника Тернопільського ЛВУМГ Тарапата Я.І.
C44: Підрозділу підприємства, якому підпорядкована лабораторія | O44: прізвище | R44: підпис | V44: дата
B45: Хімік Чорна Г.В.
C46: Лабораторія, де здійснювалось вимірювання газу | O46: прізвище | R46: підпис | V46: дата
B47: Начальник служби метрології Лукавий Р.М.
C48: Підрозділу, відповідального за облік газу за маршрутом | O48: прізвище | R48: підпис | V48: дата
B49: Точка відбору для визначення температури точки роси вологи і вуглеводнів : ГРС Тернопіль

Sheet додаток
A2: Додаток до Паспорту фізико-хімічних показників природного газу №218
A4: Область | B4: ГРС, прямий споживач | C4: Cередньозважене значення вищої теплоти згоряння
C5: МДж/м³ | D5: ккал/м³ | E5: кВт*год./м³
A6: Івано-Франківська область | B6: ГРС Рогатин | C6: 38.19371744 | D6: 9122.412817 | E6: 10.60946486
B7: ГРС Бурштин (л.№1) | C7: 38.19371744 | D7: 9122.497857 | E7: 10.60946486
B8: ГРС Бурштин (л.№2) | C8: 38.19407349 | D8: 9121.875228 | E8: 10.60874074
B9: ГРС Беньківці | C9: 38.19383867 | D9: 9122.441772 | E9: 10.60939963
B10: ГРС Лопушня (л.№1) | C10: 38.19308945 | D10: 9122.262824 | E10: 10.60919151
B11: ГРП Княгтничі | C11: 38.19400442 | D11: 9122.481361 | E11: 10.60944567
B12: ГРП Пуків | C12: 38.19355303 | D12: 9122.373548 | E12: 10.60932029
B13: АГНКС ОККО | C13: 38.19254959 | D13: 9122.13388 | E13: 10.60904155
A14: Тернопільська область | B14: ГРС Лопушня (л.№2) | C14: 38.19358447 | D14: 9122.381056 | E14: 10.60932902
A15: Середньозважене значення вищої теплоти згоряння по маршруту № 218 | C15: 38.19356978 | D15: 9122.317816 | E15: 10.60926646
A19: В.о начальника Тернопільського ЛВУМГ Тарапата Я.І
A20: Підрозділу підприємства, якому підпорядкована лабораторія | D20: прізвище | E20: підпис | F20: дата
A21: Хімік Чорна Г.В.
A22: Лабораторія, де здійснювалось вимірювання газу | D22: прізвище | E22: підпис | F22: дата
A23: Начальник служби метрології Лукавий Р.М.
A24: Підрозділу, відповідального за облік газу за маршрутом | D24: прізвище | E24: підпис | F24: дата

Sheet variablesList (hidden)
A1: 3 | B1: x:\gaysin | C1: 10, 11, 24, 25, 127, 128, 132, 180, 207, 215 | D1: x:\
B2: x:\Illinci
B3: x:\Talne
